Cogmind - Beta 13 *** ADVENTURER MODE // 2024.05.14 @ 21:56:57 Player: Bear Result: Self-destructed Performance ------------- Evolutions (1) 500 Regions Visited (3) 600 Robots Destroyed (13) 65 Value Destroyed (326) 326 Prototype IDs (2) 40 Alien Tech Used (0) 0 Bonus (0) 0 TOTAL SCORE: 1531 Bonus ------- None Cogmind --------- Core Integrity 361/400 Matter 300/300 Energy 150/150 System Corruption 0% Temperature Cool (0) Movement Walking (120) Location -9/Materials Parts ------- > --- POWER (1) -------- Light Angular Momentum Engine > --- PROPULSION (2) --- Aluminum Leg Aluminum Leg > --- UTILITY (3) ------ Structural Scanner Sensor Array Light Armor Plating > --- WEAPON (3) ------- EM Pulse Gun Small Laser Beam Rifle > --- INVENTORY (5) ---- Aluminum Leg Medium Matter Pod (100) Weapon Shielding Grenade Launcher Peak State ------------ > --- POWER ------------ Light Angular Momentum Engine > --- PROPULSION ------- Aluminum Leg Aluminum Leg > --- UTILITY ---------- Structural Scanner Sensor Array Light Armor Plating > --- WEAPON ----------- EM Pulse Gun Small Laser Beam Rifle > --- INVENTORY -------- Aluminum Leg Medium Matter Pod Weapon Shielding Grenade Launcher [Rating: 14] Favorites ----------- Power Light Ion Engine Engine Light Ion Engine Propulsion Aluminum Leg Leg Aluminum Leg Wheel Wheel Utility Sensor Array Device Sensor Array Storage Medium Matter Pod Protection Light Armor Plating Weapon Small Laser Energy Gun Small Laser Ballistic Gun Assault Rifle Launcher Grenade Launcher Build | -11 -10 -10 -9 ------- Run | Yrd Mat Min Mat Slots Evolved 2 | . . . 2 Power . | . . . . Propulsion . | . . . . Utility 1 | . . . 1 Weapon 1 | . . . 1 Parts Attached 26 | 6 5 12 3 Power 3 | 1 1 1 . Engine 3 | 1 1 1 . Core . | . . . . Reactor . | . . . . Propulsion 4 | 2 . 2 . Treads . | . . . . Leg 3 | 2 . 1 . Wheel 1 | . . 1 . Hover . | . . . . Flight . | . . . . Utility 9 | 1 3 4 1 Device 4 | . 2 2 . Storage 2 | 1 1 . . Processor . | . . . . Hackware . | . . . . Protection 3 | . . 2 1 Artifact . | . . . . Weapon 10 | 2 1 5 2 Energy Gun 3 | 1 . 1 1 Energy Cannon . | . . . . Ballistic Gun 3 | 1 . 2 . Ballistic Cannon . | . . . . Launcher 4 | . 1 2 1 Special Weapon . | . . . . Impact Weapon . | . . . . Slashing Weapon . | . . . . Piercing Weapon . | . . . . Special Melee Weapon . | . . . . Unidentified Prototypes . | . . . . Parts Lost 1 | . . 1 . Power 1 | . . 1 . Propulsion . | . . . . Utility . | . . . . Weapon . | . . . . Highest Loss Streak 1 | . . 1 . To Critical Strikes . | . . . . Average Slot Usage (%) 97 | . 97 97 99 Engine 11 | . 14 11 11 Leg 27 | . 28 28 22 Device 21 | . 16 23 22 Storage 1 | . 8 . . Protection 4 | . . 4 11 Energy Gun 17 | . 14 14 31 Ballistic Gun 7 | . 2 11 . Launcher 3 | . 11 1 . Naked Turns . | . . . . Heaviest Build 20 | 8 10 16 20 Greatest Support 20 | 20 20 20 20 Greatest Overweight (x) . | . . . . Average Overweight (x) . | . . . . Largest Inventory Capacity 5 | 5 5 5 5 Average Capacity 5 | 5 5 5 5 Most Carried 5 | 5 5 5 4 Average Carried 4 | 4 4 4 3 Final Capacity 5 | 5 5 5 5 Final Carried 5 | 5 5 5 4 Class Distribution -------------------- 87% | Mutant 12% | Skirmisher Dominant Class ---------------- Mutant | -10/Materials Mutant | -10/Mines Skirmisher | -9/Materials Resources | -11 -10 -10 -9 ----------- Run | Yrd Mat Min Mat Matter Collected 720 | 359 20 313 28 Remotely . | . . . . Salvage Created 407 | 72 . 279 56 Parts 15 | 3 . 9 3 Haulers Intercepted . | . . . . Recyclers Shooed . | . . . . Parts Field Recycled . | . . . . Retrieved Matter . | . . . . Parts Self-Destructed . | . . . . Prevented . | . . . . Kills | -11 -10 -10 -9 ------- Run | Yrd Mat Min Mat Combat Hostiles Destroyed 9 | 1 . 5 3 Guns 5 | 1 . 1 3 AOE 3 | . . 3 . Classes Destroyed 5 | 2 . 2 1 Worker 2 | 1 . 1 . Builder 1 | . . 1 . Recycler 1 | . . 1 . Swarmer 3 | . . . 3 Grunt 6 | 1 . 5 . Best Kill Streak 3 | 1 . 2 3 Combat Bots Only 3 | 1 . 2 3 Max Kills in Single Turn 1 | 1 . 1 1 Gunslinging . | . . . . Exploded 1 | . . 1 . Melee . | . . . . Uniques/NPCs Destroyed . | . . . . Combat | -11 -10 -10 -9 -------- Run | Yrd Mat Min Mat Hostile Shots Fired 92 | 6 . 53 33 Missed 30 | 1 . 20 9 Damage Taken 635 | 41 . 451 143 Core 66 | . . 27 39 Absorbed by Shields . | . . . . Ignored by Resistances 193 | 14 . 131 48 Core Remaining (%) 94 | 100 . 89 . Volleys Fired 71 | 6 14 41 10 Largest 3 | 2 1 2 3 Hottest 136 | 60 40 70 136 Shots Fired 117 | 10 14 72 21 Gun 111 | 10 14 66 21 Cannon . | . . . . Launcher 6 | . . 6 . Special . | . . . . Kinetic 29 | 4 . 25 . Thermal 72 | 6 14 38 14 Explosive 6 | . . 6 . Electromagnetic 10 | . . 3 7 Robot Hit Streak 24 | 6 7 24 8 Robot Miss Streak 2 | 1 2 2 1 Penetration Max . | . . . . Secondary Targets . | . . . . Shots Hit Robots 61 | 9 1 45 6 Core Hits 23 | 3 . 15 5 Critical Kills . | . . . . Critical Parts Destroyed . | . . . . Critical Strikes 2 | . . . 2 Burn 1 | . . . 1 Corrupt 1 | . . . 1 Melee Attacks . | . . . . Impact . | . . . . Slashing . | . . . . Piercing . | . . . . Sneak Attacks . | . . . . Combat Hostiles . | . . . . Follow-up Attacks . | . . . . Damage Inflicted 1012 | 103 10 822 77 Guns 673 | 103 10 485 75 Cannons . | . . . . Explosions 337 | . . 337 . Melee . | . . . . Ramming 2 | . . . 2 Kinetic 232 | 33 . 199 . Thermal 419 | 70 10 286 53 Explosive 337 | . . 337 . Electromagnetic 22 | . . . 22 Impact . | . . . . Slashing . | . . . . Piercing . | . . . . Highest Corruption . | . . . . Average Corruption . | . . . . Corruption Purged . | . . . . Corruption Blocked . | . . . . Overload Shots . | . . . . Overflow Damage . | . . . . Projectiles . | . . . . Explosions . | . . . . Melee . | . . . . Knockbacks . | . . . . Impact . | . . . . Kinetic . | . . . . Secondary . | . . . . Self-Inflicted Damage 61 | . . 61 . Shots 4 | . . 4 . Rammed . | . . . . Targets Rammed 1 | . . . 1 Kicked 1 | . . . 1 Crushed . | . . . . Highest Temperature 225 | 12 . 171 225 Average Temperature 60 | 9 . 43 102 Received Heat Transfer 315 | 30 . 285 . Effects 2 | . . . 2 Interference 2 | . . . 2 Siege Activations . | . . . . Robots Corrupted . | . . . . Combat Hostiles . | . . . . Parts Fried . | . . . . Impact Corruptions . | . . . . Robots Melted 1 | . . 1 . Combat Hostiles 1 | . . 1 . Parts Melted . | . . . . Heat Transferred 1035 | 150 25 650 210 Parts Sabotaged . | . . . . Parts Stolen . | . . . . Parts Stripped . | . . . . Power Chain Reactions . | . . . . Alert | -11 -10 -10 -9 ------- Run | Yrd Mat Min Mat Peak Influence 122 | 25 20 122 104 Initial 25 | . 13 6 25 Average 49 | 17 13 79 41 Maximum Alert Level . | . . . . Low Security (%) 100 | 100 100 100 100 Level 1 . | . . . . Level 2 . | . . . . Level 3 . | . . . . Level 4 . | . . . . Level 5 . | . . . . High Security . | . . . . Max Security . | . . . . Squads Dispatched 2 | . . . 2 Investigation . | . . . . Extermination . | . . . . Reinforcement 2 | . . . 2 Assault . | . . . . Garrison . | . . . . Intercept . | . . . . Searches Triggered . | . . . . Construction Impeded . | . . . . Haulers Reinforced . | . . . . Active Scanning Responses . | . . . . Cargo Convoy Interrupts . | . . . . Stealth | -11 -10 -10 -9 --------- Run | Yrd Mat Min Mat Distress Signals 1 | . . . 1 Communications Jammed . | . . . . Distress Signals . | . . . . Times Spotted 20 | 1 1 9 9 Peak Tracking Total 9 | 1 1 9 4 Tactical Retreats . | . . . . Traps | -11 -10 -10 -9 ------- Run | Yrd Mat Min Mat Traps Triggered . | . . . . Indirectly . | . . . . Trap Hack Attempts . | . . . . Triggered . | . . . . Disarmed . | . . . . Reprogrammed . | . . . . Reused . | . . . . Traps Extracted . | . . . . Installed . | . . . . Triggered . | . . . . Machines | -11 -10 -10 -9 ---------- Run | Yrd Mat Min Mat Machines Disabled 4 | . . 3 1 Max in Single Turn 2 | . . 2 1 Machines Repaired . | . . . . Machines Dismantled . | . . . . Machines Sabotaged . | . . . . Overloaded Fab Kills . | . . . . Hacking | -11 -10 -10 -9 --------- Run | Yrd Mat Min Mat Machines Accessed 4 | . 3 . 1 Terminals 2 | . 2 . . Fabricators . | . . . . Repair Stations 1 | . . . 1 Recycling Units 1 | . 1 . . Scanalyzers . | . . . . Garrison Access . | . . . . Total Hacks 11 | . 10 . 1 Successful 7 | . 7 . . Failed 4 | . 3 . 1 Catastrophic . | . . . . Database Lockouts . | . . . . Manual 4 | . 1 . 3 Terminals 6 | . 6 . . Fabricators . | . . . . Repair Stations 1 | . . . 1 Recycling Units 4 | . 4 . . Scanalyzers . | . . . . Garrison Access . | . . . . Terminal Hacks 4 | . 4 . . Record 1 | . 1 . . Prototype ID Bank 1 | . 1 . . Locate Traps 1 | . 1 . . Assault Status 1 | . 1 . . Fabricator Hacks . | . . . . Repair Station Hacks . | . . . . Recycling Unit Hacks 3 | . 3 . . Recycle Component 1 | . 1 . . Process 1 | . 1 . . Report Inventory 1 | . 1 . . Scanalyzer . | . . . . Garrison Access Hacks . | . . . . Unauthorized Hacks . | . . . . Terminals . | . . . . Fabricators . | . . . . Repair Stations . | . . . . Recycling Units . | . . . . Scanalyzers . | . . . . Garrison Access . | . . . . Data Cores Recovered . | . . . . Used . | . . . . Hacking Detections 3 | . 2 . 1 Full Trace Events 1 | . 1 . . Feedback Events . | . . . . Feedback Blocked . | . . . . Robot Schematics Acquired . | . . . . Robots Built . | . . . . Authchips . | . . . . Time . | . . . . Total Robot Build Rating . | . . . . Part Schematics Acquired . | . . . . Parts Built . | . . . . Authchips . | . . . . Time . | . . . . Total Part Build Rating . | . . . . Parts Repaired . | . . . . Time . | . . . . Parts Recycled 1 | . 1 . . Recycled Matter 4 | . 4 . . Retrieved Matter . | . . . . Retrieved Components . | . . . . Parts Scanalyzed . | . . . . Part Schematics Acquired . | . . . . Parts Damaged . | . . . . Bothacking | -11 -10 -10 -9 ------------ Run | Yrd Mat Min Mat Used RIF Installer . | . . . . Robots Hacked . | . . . . Non-combat . | . . . . Combat . | . . . . Robot Hacks Applied . | . . . . Relay Couplers Released . | . . . . Fabnet Peak Effective % . | . . . . Robots Rewired . | . . . . Allies Hacked . | . . . . Hacks Repelled . | . . . . Allies | -11 -10 -10 -9 -------- Run | Yrd Mat Min Mat Total Allies . | . . . . Largest Group . | . . . . Highest-Rated Group . | . . . . Highest-Rated Ally . | . . . . Total Orders . | . . . . Ally Attacks . | . . . . Total Damage . | . . . . Kills . | . . . . Allies Corrupted . | . . . . Allies Melted . | . . . . Intel | -11 -10 -10 -9 ------- Run | Yrd Mat Min Mat Robot Analysis Total . | . . . . Derelict Logs Recovered 1 | . . 1 . Drone Launches . | . . . . Drone Recoveries . | . . . . Exploration | -11 -10 -10 -9 ------------- Run | Yrd Mat Min Mat Turns Passed 1274 | 317 198 603 156 Spaces Moved 672 | 88 126 356 102 Core 23 | 23 . . . Treads . | . . . . Legs 649 | 65 126 356 102 Wheels . | . . . . Hover . | . . . . Flight . | . . . . Fastest Speed 50 | 50 120 120 120 Average Speed 117 | 101 120 120 120 Slowest Speed 120 | 120 120 120 120 Overloaded Moves . | . . . . Propulsion Burnouts . | . . . . Robots Hopped . | . . . . Cave-ins Triggered . | . . . . Exploration Rate (%) 29 | 9 19 80 10 Regions Visited 3 Branch Regions 1 Pre-discovered Areas 1 | . . 1 . Known Exits Taken . | . . . . Unknown Exits Taken 3 | 1 1 1 . Scrap Searched 1 | . . 1 . Spaces Dug . | . . . . Terrain Destroyed 39 | . . 39 . Melee . | . . . . Projectile . | . . . . AOE 39 | . . 39 . Terrain Rammed . | . . . . Walls Destroyed . | . . . . Machines Disabled . | . . . . Actions | -11 -10 -10 -9 --------- Run | Yrd Mat Min Mat Total 1038 | 305 159 457 117 Wait 240 | 195 5 40 . Move 669 | 87 125 355 102 Hop . | . . . . Pick Up 23 | 11 6 5 1 Fast Attach . | . . . . Attach 13 | 6 2 3 2 Detach . | . . . . Swap 13 | . 3 9 1 Drop 8 | . 4 4 . Fire 71 | 6 14 41 10 Melee . | . . . . Ram . | . . . . Kick 1 | . . . 1 Crush . | . . . . Escape Stasis . | . . . . Rewire . | . . . . Trap . | . . . . Miscellaneous . | . . . . Route ------- -11/Scrapyard -10/Materials (discovered 2 exits: [*Min] / [Sub]) -10/Mines -9/Materials History --------- Turn | Location | Event 2 | -11/Scrapyard | Met Revision 17 86 | -11/Scrapyard | Discovered new exit (range 8) 318 | -11/Scrapyard | Entered Materials 319 | -10/Materials | Build established: Mutant 382 | -10/Materials | Discovered new exit (range 9) 486 | -10/Materials | Discovered new exit (range 14) 516 | -10/Materials | Entered Mines 542 | -10/Mines | Met a Derelict bent on vengeance 853 | -10/Mines | Assembled infested the area 1102 | -10/Mines | Discovered new exit (range 13) 1119 | -10/Mines | Entered Materials 1119 | -9/Materials | Evolved 2 slots: Utility x1, Weapon x1 1275 | -9/Materials | Self-destructed Last Messages --------------- SECURING TERMINAL." 01233_ ALERT: Hostiles spotted, dispatching reinforcements to Terminal M012. [Achievement: Uninvited Guest] 01238_ S-10 Pest destroyed. 01241_ S-10 Pest suffers critical hit (Burn). 01241_ R-06 Scavenger collects Lgt. Ion Engine. 01244_ S-10 Pest destroyed. 01248_ R-06 Scavenger collects Lgt. Ion Engine. 01249_ Overheating: System interference. 01249_ Beam Rifle temporarily disabled. 01252_ R-06 Scavenger collects Flight Unit. 01256_ R-06 Scavenger collects Lgt. Assault Rifle. 01257_ Acquired 18 matter. 01262_ O-16 Technician: "IFF HANDSHAKE FAILED. SECURING TERMINAL." 01262_ Acquired 10 matter. 01267_ ALERT: Hostiles spotted, dispatching reinforcements to Terminal M003. Map ----- +----------------------------------------------------+ | ?????????????????????????????????????????????????? | | ?????????????????????????????????????????????????? | | ?????????????????????????????????????????????????? | | ?????????????????????????????????????????????????? | | ?????????????????????????????????????????????????? | | ?????????????????????????????????????????????????? | | ?????????????????????????????????????????????????? | | ?????????????????????????????????????????????????? | | ?????????????????????????????????????????????????? | | ?????????????????????????????????????????????????? | | ???????????????????????? ????????????????????????? | | ???????????????????????? ????????????????????????? | | ??????????????????????##t ? ??????????????????? | | ??????????????????????##/##?###??????????????????? | | ?????????????? # ## ##? ??????????????????? | | ?????????????? ######### ## ????????????????? ?? | | ?????????????? ## ???????? # ??? | | ????????????? # ????????######## ???? | | ?????????? ? t + ?????????## ???? | | ?????????? # ?????????## ?????? | | ???????? # ?????????## ?????? | | ???????? # ?????????## ######## | | ?????????"" """ """ # ?????????## ######## | | ?????""""""" """"""""" ############# # | | ?????""" """"" " ############# # | | ?? % % @ # | | ?? rs + """ " | | ?? ss # """""" | | ?? ################### # """"" | | ??##########+## ################### # | | ??###### # ###??????## # ######## | | ????????????? # # ?????? # = # # | | ????????????? # + ??????? # = # # ?????? | | ????????????? # # ??????? # # # ?????? | | ????????????? # # ??????? # "" # # ?????? | | ????????????? # # ???????"# """ + + ?????? | | ?????????????+# # ???????"# R" # # ?????? | | ????????????? + ???????"# """ # # ?????? | | ?????????????? # ??????? # # # ?????? | | ????????????? ##???????############### ?????? | | ?????????????####+##????????################?????? | | ????????????? ?????????????????????????????? | | ?????????????????????????????????????????????????? | | ?????????????????????????????????????????????????? | | ?????????????????????????????????????????????????? | | ?????????????????????????????????????????????????? | | ?????????????????????????????????????????????????? | | ?????????????????????????????????????????????????? | | ?????????????????????????????????????????????????? | | | +----------------------------------------------------+ Best States ------------- Heat Dissipation 28 Energy Generation 18 Energy Capacity 150 Matter Stores 387 Matter Capacity 400 Sight Range 16 Robot Scan Range 14 Terrain Scan Density 10 Armor Coverage 150 Resistance: KI 20 Resistance: TH 20 Resistance: EX 20 Resistance: EM 20 Resistance: I 20 Resistance: S 20 Resistance: P 20 Evasion (%) 55 Offensive Hacking 10 Item Schematics ----------------- None Robot Schematics ------------------ None Fabricated ------------ Nothing Alien Tech Used ----------------- None Achievements -------------- Crack Shot I Survived The Infestation It's Just You Uninvited Guest Challenges ------------ None Game ------ Seed DefenseShockSpecial Manual? 0 Play Time 00:58:43 Cumulative 0.9 hours Start 2024.05.14 @ 20:51:14 End 2024.05.14 @ 21:56:57 Sessions 1 Manual Loads 0 Difficulty Adventurer Special Mode None Game No. 1 Rogue 0 Adventurer 1 Explorer 0 Win Type - Total 0 Types 0/0/0/0/0/0/0/0/0 Lore% 0 Gallery% 1 Achievement% 1 Wizard Run 0 Options --------- Layout 1 ASCII 0 Keyboard 0 Movement Mouse Keybinds 0 Fullscreen 1 Font 32/SmallcapsGlow Map View 50x40 Zoom Use 0% Tactical HUD 1 Map Filters NONE Filters NONE Steam 1 RUN: 2653a102-f039-4f3e-ab6a-cd5e5fb814c4